fUSD/lending_fUSD_20251213
["ID","MTS","AMOUNT","RATE_DAILY","PERIOD"]
[398428497,1765642239089,-326.08711315,0.00016711,2]
[398428499,1765642239098,-500.0,0.00016711,2]
[398428501,1765642239108,-500.0,0.00016711,2]
[398428503,1765642239117,-500.0,0.00016711,2]
[398428505,1765642239127,-500.0,0.00016711,2]
[398428507,1765642239137,-500.0,0.00016711,2]
[398428509,1765642239147,-500.0,0.00016711,2]
[398428511,1765642239156,-500.0,0.00016711,2]
[398428513,1765642239167,-500.0,0.00016712,2]
[398428515,1765642239177,-202.71110877,0.00016712,2]
[398428517,1765642239187,-150.0,0.00016712,2]
[398428519,1765642239196,-500.0,0.00016712,2]
[398428521,1765642239205,-680.0,0.00016712,2]
[398428523,1765642239215,-500.0,0.00016712,2]
[398428524,1765642239226,-500.0,0.00016712,2]
[398428525,1765642239236,-500.0,0.00016741,2]
[398428526,1765642239245,-1000.0,0.000168,2]
[398428527,1765642239256,-500.0,0.00016822,2]
[398428528,1765642239265,-646.57690928,0.00016837,2]
[398428530,1765642239275,-15118.2133527,0.00016837,2]
[398428531,1765642239288,-323.73082828,0.00016837,2]
[398428538,1765642240337,-328.93344364,0.00016799,2]
[398428539,1765642240348,-259.29645494,0.00016837,2]
[398428540,1765642240357,-500.0,0.00016849,2]
[398428541,1765642240367,-150.0,0.00016849,2]
[398428542,1765642240377,-500.0,0.00016849,2]
[398428543,1765642240387,-680.0,0.00016849,2]
[398428544,1765642240397,-500.0,0.00016849,2]
[398428545,1765642240407,-500.0,0.00016849,2]
[398428546,1765642240416,-1261.0,0.00016855,2]
[398428547,1765642240426,-200.0,0.00016863,2]
[398428548,1765642240436,-1196.0,0.00016875,2]
[398428549,1765642240446,-2426.0,0.00016875,2]
[398428550,1765642240456,-505.30721612,0.00016875,2]
[398428551,1765642240468,-57.69278388,0.00016875,2]
[398428552,1765642240478,-721.58521462,0.00016875,2]
[398428553,1765642240584,-2864.57164166,0.00016875,2]
[398428554,1765642240597,-424.34554978,0.00016875,2]
[398428555,1765642240609,-452.32690442,0.00016875,2]
[398428556,1765642240798,-2057.17068952,0.00016875,2]
[398428557,1765642240808,-1000.0,0.0001689,2]
[398428558,1765642240817,-2891.57366947,0.00016899,2]
[398428559,1765642240831,-1502.85934975,0.000169,2]
[398428560,1765642240841,-1000.0,0.000169,2]
[398428561,1765642240851,-159.49809036,0.000169,2]
[398428562,1765642240862,-492.39480152,0.00016915,2]
[398428563,1765642240872,-151.0,0.00016919,2]
[398428564,1765642240882,-252.74881661,0.00016921,2]
[398428565,1765642240892,-180.40587741,0.00016921,2]
[398428566,1765642240902,-500.0,0.00016921,2]
[398428567,1765642240911,-500.0,0.00016921,2]
[398428568,1765642240921,-266.70852726,0.00016921,2]
[398428569,1765642240931,-9999.99,0.00016922,2]
[398428570,1765642240940,-9999.99,0.00016922,2]
[398428571,1765642240950,-7413.33,0.00016922,2]
[398428572,1765642240960,-150.99,0.00016922,2]
[398428573,1765642240970,-511.25,0.00016922,2]
[398428574,1765642240980,-39394.71,0.00016922,2]
[398428575,1765642240991,-87878.7,0.00016922,2]
[398428576,1765642241001,-9999.99,0.00016922,2]
[398428577,1765642241011,-150.99,0.00016922,2]
[398428578,1765642241021,-999.99,0.00016922,2]
[398428579,1765642241031,-9999.99,0.00016922,2]
[398428580,1765642241041,-404.5,0.00016922,2]
[398428581,1765642241051,-202.0,0.0001693,2]
[398428582,1765642241061,-25014.46839961,0.00016937,2]
[398428592,1765642243410,-3410.51349519,0.00016937,2]
[398428596,1765642245769,-836.99523524,0.00016937,2]
[398428597,1765642245782,-531.43258435,0.00016937,2]
[398428598,1765642245802,-12620.95133801,0.00016937,2]
[398428599,1765642245812,-17270.1623806,0.00016937,2]
[398428600,1765642245821,-11176.8591271,0.00016937,2]
[398428601,1765642245835,-2754.5519763,0.00016937,2]
[398428602,1765642245844,-2429.327732,0.00016937,2]
[398428603,1765642245854,-15701.2406359,0.00016955,2]
[398428604,1765642245864,-3449.0,0.00016957,2]
[398428605,1765642245875,-1606.0,0.00016957,2]
[398428606,1765642245885,-1324.0,0.00016957,2]
[398428607,1765642245895,-500.0,0.00016973,2]
[398428608,1765642245905,-500.0,0.00016973,2]
[398428609,1765642245916,-500.0,0.00016973,2]
[398428610,1765642245926,-164.24,0.00016976,2]
[398428611,1765642245935,-214.9055752,0.00016978,2]
[398428612,1765642245945,-500.0,0.00016986,2]
[398428613,1765642245955,-150.0,0.00016986,2]
[398428614,1765642245964,-500.0,0.00016986,2]
[398428615,1765642245973,-680.0,0.00016986,2]
[398428616,1765642245983,-500.0,0.00016986,2]
[398428617,1765642245992,-500.0,0.00016986,2]
[398428618,1765642246002,-581.39,0.00016986,2]
[398428619,1765642246011,-150.0,0.00016986,2]
[398428620,1765642246021,-150.0,0.00016986,2]
[398428621,1765642246030,-293.1553204,0.00016986,2]
[398428622,1765642246040,-150.0,0.00016986,2]
[398428623,1765642246050,-150.0,0.00016986,2]
[398428624,1765642246059,-150.0,0.00016986,2]
[398428625,1765642246068,-150.0,0.00016986,2]
[398428626,1765642246077,-646.57690927,0.00016989,2]
[398428627,1765642246087,-702.5213893,0.0001699,2]
[398428628,1765642246096,-9520.0,0.00017,2]
[398428629,1765642246106,-21760.55468616,0.00017,2]
[398428630,1765642246276,-3153.60641716,0.00017,2]
[398428631,1765642246289,-2235.31959032,0.00017,2]
[398428632,1765642246342,-9049.07545173,0.00017,2]
[398428633,1765642246354,-40404.95478861,0.00017,2]
[398428634,1765642246393,-778.86652638,0.00017,2]
[398428635,1765642246449,-308.93545843,0.00017,2]
[398428801,1765642386109,539.58,0.00013699,2]
[398428835,1765642728669,256.72,0.00015873,2]
[398428836,1765642932588,500.0,0.00015882,2]
[398428837,1765642940839,1029.46,0.00015833,2]
[398428838,1765642977743,5680.42,0.00015798,2]
[398428839,1765642979782,300.0,0.00015882,2]
[398428907,1765643248691,200.0,0.00015758,2]
[398428914,1765643326281,500.0,0.00015525,2]
[398428924,1765643431269,-305.7402194,0.000159,2]
[398428925,1765643431278,-195.0,0.00015925,2]
[398428928,1765643431288,-250.0,0.0001595,2]
[398428931,1765643431298,-195.0,0.0001597,2]
[398428934,1765643431307,-151.0,0.00015997,2]
[398428937,1765643431316,-1200.0,0.00015999,2]
[398428938,1765643431325,-300.0,0.00015999,2]
[398428939,1765643431334,-300.0,0.00015999,2]
[398428940,1765643431344,-1200.0,0.00015999,2]
[398428941,1765643431353,-300.0,0.00015999,2]
[398428942,1765643431362,-229.0493735,0.00016,2]
[398428943,1765643431374,-2238.41975202,0.00016,2]
[398428944,1765643431392,-5342.00000007,0.00016,2]
[398428945,1765643431412,-2867.08577167,0.00016,2]
[398428946,1765643431423,-2535.48197541,0.00016,2]
[398428947,1765643431435,-9742.77729287,0.00016,2]
[398428948,1765643431445,-6945.71585071,0.00016,2]
[398428949,1765643431455,-912.36526258,0.00016,4]
[398428950,1765643431466,-2648.80878799,0.00016,4]
[398428951,1765643431539,-49655.88691825,0.00016,4]
[398429024,1765643437386,-500.0,0.00015999,2]
[398429025,1765643437401,-176.92417162,0.00015999,2]
[398429026,1765643437415,-528.13245816,0.00015999,2]
[398429027,1765643437428,-500.0,0.00015999,2]
[398429028,1765643437442,-500.0,0.00015999,2]
[398429029,1765643437456,-348.92943436,0.00015999,2]
[398429030,1765643437508,-151.07056564,0.00015999,2]
[398429031,1765643437521,-388.86494438,0.00015999,2]
[398429032,1765643437539,-111.13505562,0.00015999,2]
[398429033,1765643437551,-500.0,0.00015999,2]
[398429034,1765643437566,-500.0,0.00015999,2]
[398429035,1765643437579,-500.0,0.00015999,2]
[398429036,1765643437592,-500.0,0.00015999,2]
[398429037,1765643437606,-500.0,0.00015999,2]
[398429038,1765643437619,-500.0,0.00015999,2]
[398429039,1765643437633,-500.0,0.00015999,2]
[398429041,1765643437646,-500.0,0.00015999,2]
[398429044,1765643437660,-509.67025783,0.00015999,2]
[398429046,1765643437673,-500.0,0.00015999,2]
[398429048,1765643437686,-116165.09746962,0.00016,4]
[398429050,1765643437703,-66775.68700671,0.00016,4]
[398429052,1765643437721,-21669.28802889,0.00016,4]
[398429079,1765643439511,-500.0,0.00016,4]
[398429080,1765643439577,-2169.59570977,0.00016,4]
[398429081,1765643439644,-981.22588339,0.00016,4]
[398429165,1765643446178,-903.19996227,0.00016,4]
[398429166,1765643581735,8871.8761938,0.0001584,2]
[398429167,1765643582676,244.0642,0.000158,2]
[398429193,1765643645985,156.18,7.708e-05,2]
[398429194,1765643646211,156.18,9.25e-05,2]
[398429196,1765643646415,156.18,0.00010792,2]
[398429197,1765643646639,156.18,0.00012333,2]
[398429199,1765643646839,156.18,0.00013875,2]
[398429200,1765643647050,156.18,0.00015416,2]
[398429231,1765643725036,3240.0,0.00015413,2]
[398429251,1765643800271,327.41138895,0.000225,120]
[398429252,1765643821310,1000.0,0.00015334,2]
[398429258,1765643849357,6188.9,0.00015303,2]
[398429294,1765643951134,417.0,0.00015869,2]
[398429295,1765644030653,4262.07,0.00015203,2]
[398429298,1765644140035,163.63,0.0001217,2]
[398429299,1765644166914,200.0,0.00015791,2]
[398429300,1765644167427,207.4,0.00015791,2]
[398429301,1765644168302,215.0738,0.00015791,2]
[398429302,1765644169022,223.0315306,0.00015791,2]
[398429303,1765644169683,231.28369723,0.00015791,2]
[398429304,1765644170377,239.84119403,0.00015791,2]
[398429305,1765644170584,152.04,0.00015185,2]
[398429306,1765644171077,248.71531821,0.00015791,2]
[398429307,1765644171773,257.91778498,0.00015791,2]
[398429308,1765644177946,166.66,0.00014413,2]
[398429309,1765644178173,166.66,0.00014716,2]
[398429310,1765644178594,166.66,0.00015019,2]
[398429311,1765644178811,166.66,0.00015323,2]
[398429312,1765644179022,166.66,0.00015626,2]
[398429313,1765644224926,999.0,0.00015134,3]
[398429314,1765644270920,768.89,0.00015193,2]
[398429315,1765644307060,150.0,0.00015288,2]
[398429316,1765644307439,150.0,0.00015288,2]
[398429317,1765644307638,150.0,0.00015288,2]
[398429318,1765644313933,150.0,0.00015288,2]
[398429319,1765644313983,150.0,0.00015288,2]
[398429320,1765644328876,150.0,0.00015288,2]
[398429321,1765644334967,97.81667495,0.00015848,2]
[398429322,1765644334989,115.80532317,0.00015848,2]
[398429325,1765644575436,597.56,0.00015085,2]
[398429347,1765644631672,-1200.0,0.00015896,2]
[398429348,1765644631682,-300.0,0.00015896,2]
[398429349,1765644631691,-195.0,0.00015897,2]
[398429350,1765644631701,-10353.37032353,0.00015897,2]
[398429351,1765644631712,-16720.58463413,0.00015897,2]
[398429352,1765644631721,-908.89759881,0.00015897,2]
[398429353,1765644631730,-300.0,0.00015923,2]
[398429354,1765644631740,-195.0,0.00015923,2]
[398429355,1765644631750,-166.66,0.0001593,2]
[398429356,1765644631759,-417.0,0.00015936,2]
[398429357,1765644631769,-300.0,0.00015942,2]
[398429358,1765644631779,-300.0,0.00015942,2]
[398429359,1765644631788,-417.0,0.00015979,2]
[398429360,1765644631798,-300.0,0.00015985,2]
[398429362,1765644631807,-1187.59,0.00015986,2]
[398429363,1765644631816,-1000.0,0.00015986,2]
[398429365,1765644631825,-219.69272071,0.00015986,2]
[398429367,1765644631834,-500.0,0.00015986,2]
[398429370,1765644631844,-500.0,0.00015986,2]
[398429373,1765644631854,-500.0,0.00015986,2]
[398429376,1765644631863,-500.0,0.00015986,2]
[398429379,1765644631872,-500.0,0.00015986,2]
[398429381,1765644631882,-500.0,0.00015986,2]
[398429382,1765644631891,-500.0,0.00015986,2]
[398429384,1765644631900,-500.0,0.00015986,2]
[398429386,1765644631910,-500.0,0.00015986,2]
[398429389,1765644631920,-500.0,0.00015986,2]
[398429391,1765644631930,-500.0,0.00015986,2]
[398429392,1765644631939,-500.0,0.00015986,2]
[398429394,1765644631949,-500.0,0.00015986,2]
[398429396,1765644631958,-500.0,0.00015986,2]
[398429398,1765644631967,-500.0,0.00015986,2]
[398429400,1765644631977,-500.0,0.00015986,2]
[398429402,1765644631986,-500.0,0.00015986,2]
[398429403,1765644631994,-500.0,0.00015986,2]
[398429405,1765644632004,-500.0,0.00015986,2]
[398429407,1765644632013,-500.0,0.00015986,2]
[398429408,1765644632023,-500.0,0.00015986,2]
[398429409,1765644632034,-309.22755918,0.00015986,2]
[398429410,1765644632044,-500.0,0.00015986,2]
[398429411,1765644632054,-500.0,0.00015986,2]
[398429412,1765644632063,-500.0,0.00015986,2]
[398429413,1765644632074,-500.0,0.00015986,2]
[398429414,1765644632084,-500.0,0.00015986,2]
[398429415,1765644632094,-500.0,0.00015986,2]
[398429416,1765644632103,-500.0,0.00015986,2]
[398429417,1765644632113,-500.0,0.00015986,2]
[398429418,1765644632123,-200.0,0.00015986,2]
[398429419,1765644632133,-500.0,0.00015986,2]
[398429420,1765644632144,-500.0,0.00015986,2]
[398429421,1765644632158,-54318.33605738,0.00015987,2]
[398429422,1765644632170,-19420.96842725,0.00015987,2]
[398429424,1765644637772,-510.49031941,0.00015897,2]
[398429425,1765644637791,-865.42829817,0.00015897,2]
[398429426,1765644637810,-557.29673828,0.00015897,2]
[398429427,1765644637826,-2186.95892979,0.00015987,2]
[398429428,1765644637844,-674.23910045,0.00015987,2]
[398429429,1765644637863,-369.44698023,0.00015987,2]
[398429431,1765644637883,-82949.85309775,0.00015987,2]
[398429434,1765644638338,-447.66174487,0.00015987,2]
[398429435,1765644638358,-10820.32796789,0.00015987,2]
[398429436,1765644638387,-575.09999824,0.00015987,2]
[398429437,1765644638414,-454283.39309615,0.00015987,2]
[398429438,1765644638430,-500.0,0.00015997,2]
[398429439,1765644638447,-500.0,0.00015999,2]
[398429440,1765644638464,-500.0,0.00015999,2]
[398429441,1765644638482,-39575.43785017,0.00016,4]
[398429442,1765644638498,-152.04,0.00016029,2]
[398429443,1765644638514,-151.0,0.00016036,2]
[398429444,1765644638529,-719.04747942,0.00016036,2]
[398429445,1765644638544,-995.0,0.00016036,2]
[398429446,1765644638560,-200.0,0.00016036,2]
[398429447,1765644638575,-344.81753355,0.00016036,2]
[398429448,1765644638592,-300.0,0.00016036,2]
[398429449,1765644638608,-300.0,0.00016036,2]
[398429450,1765644638623,-578.20924308,0.00016036,2]
[398429451,1765644638639,-1000.0,0.00016042,2]
[398429452,1765644638656,-281.3609,0.00016042,2]
[398429453,1765644638671,-427.134,0.00016042,2]
[398429454,1765644638688,-10000.01,0.00016042,2]
[398429455,1765644638703,-589.6468,0.00016042,2]
[398429456,1765644638718,-6680.3459,0.00016042,2]
[398429457,1765644638733,-995.0,0.00016091,2]
[398429458,1765644638749,-10353.37032344,0.0001612,2]
[398429459,1765644638764,-16720.58463408,0.0001612,2]
[398429460,1765644638780,-151.0,0.00016132,2]
[398429461,1765644638795,-500.0,0.00016132,2]
[398429462,1765644638810,-151.0,0.00016132,2]
[398429463,1765644638826,-500.0,0.00016132,2]
[398429464,1765644638842,-151.0,0.00016132,2]
[398429465,1765644638859,-500.0,0.00016132,2]
[398429466,1765644638875,-151.0,0.00016132,2]
[398429467,1765644638891,-500.0,0.00016132,2]
[398429468,1765644638906,-151.0,0.00016132,2]
[398429469,1765644638922,-500.0,0.00016132,2]
[398429470,1765644638937,-151.0,0.00016132,2]
[398429471,1765644638953,-291.28061523,0.00016132,2]
[398429472,1765644638968,-151.0,0.00016132,2]
[398429473,1765644638984,-216.52973342,0.00016132,2]
[398429474,1765644639000,-151.0,0.00016132,2]
[398429475,1765644639015,-1000.0,0.00016132,2]
[398429476,1765644639032,-595.37131296,0.00016132,2]
[398429477,1765644639047,-1000.0,0.00016132,2]
[398429478,1765644639062,-1000.0,0.00016132,2]
[398429479,1765644639077,-1000.0,0.00016132,2]
[398429480,1765644639092,-200.0,0.00016132,2]
[398429481,1765644639107,-1000.0,0.00016132,2]
[398429482,1765644639125,-1000.0,0.00016132,2]
[398429483,1765644639140,-1000.0,0.00016132,2]
[398429484,1765644639161,-1000.0,0.00016132,2]
[398429485,1765644639175,-1000.0,0.00016132,2]
[398429486,1765644639191,-1000.0,0.00016132,2]
[398429487,1765644639206,-1000.0,0.00016132,2]
[398429488,1765644639221,-1000.0,0.00016132,2]
[398429489,1765644639238,-1000.0,0.00016132,2]
[398429490,1765644639252,-1000.0,0.00016132,2]
[398429491,1765644639267,-151.0,0.00016132,2]
[398429492,1765644639281,-1000.0,0.00016132,2]
[398429494,1765644639296,-500.0,0.00016141,2]
[398429495,1765644639311,-3050.3574164,0.00016142,2]
[398429496,1765644639325,-927.9329245,0.00016142,2]
[398429497,1765644639339,-210606.3395216,0.00016142,2]
[398429498,1765644639354,-9511.2566478,0.00016142,2]
[398429499,1765644639368,-212.0,0.00016143,2]
[398429500,1765644639382,-1021.0,0.00016143,2]
[398429501,1765644639397,-995.0,0.00016146,2]
[398429504,1765644639411,-1577.0,0.0001615,2]
[398429505,1765644639426,-651.0,0.00016175,2]
[398429506,1765644639439,-978.0,0.00016178,2]
[398429507,1765644639455,-976.0,0.00016182,2]
[398429508,1765644639469,-908.89759879,0.00016183,2]
[398429509,1765644639483,-4239.27855912,0.000162,5]
[398429510,1765644639498,-356.32,0.000162,2]
[398429511,1765644639512,-995.0,0.00016201,2]
[398429512,1765644639526,-285.0,0.00016215,2]
[398429513,1765644639540,-152.56,0.00016237,2]
[398429514,1765644639553,-151.67,0.00016237,2]
[398429515,1765644639567,-152.46,0.00016237,2]
[398429516,1765644639582,-151.12,0.00016237,2]
[398429517,1765644639596,-203.96103625,0.00016237,2]
[398429518,1765644639610,-1041.0,0.00016256,2]
[398429519,1765644639625,-1187.59,0.0001626,2]
[398429520,1765644639640,-500.0,0.00016271,2]
[398429521,1765644639655,-168.0,0.00016319,2]
[398429522,1765644639669,-417.0,0.0001634,2]
[398429523,1765644639683,-10353.37032344,0.00016342,2]
[398429524,1765644639697,-16720.58463408,0.00016342,2]
[398429525,1765644639711,-168.0,0.00016344,2]
[398429526,1765644639725,-500.0,0.00016384,2]
[398429527,1765644639739,-222.22156466,0.00016399,2]
[398429528,1765644639753,-500.0,0.00016399,2]
[398429529,1765644639767,-102508.48342984,0.000164,2]
[398429530,1765644639781,-1801.0,0.000164,2]
[398429531,1765644639796,-151.0,0.000164,2]
[398429532,1765644639811,-151.0,0.000164,2]
[398429533,1765644639825,-150.0,0.00016414,2]
[398429534,1765644639839,-151.0,0.00016438,2]
[398429535,1765644639854,-151.0,0.00016438,2]
[398429536,1765644640337,-500.0,0.00016438,2]
[398429537,1765644640370,-500.0,0.00016438,2]
[398429538,1765644640380,-500.0,0.00016438,2]
[398429539,1765644640389,-500.0,0.00016438,2]
[398429540,1765644640399,-500.0,0.00016438,2]
[398429541,1765644640408,-322.88922,0.00016438,2]
[398429542,1765644640418,-500.0,0.00016438,2]
[398429543,1765644640427,-500.0,0.00016438,2]
[398429544,1765644640437,-500.0,0.00016438,2]
[398429545,1765644640446,-500.0,0.00016438,2]
[398429546,1765644640456,-500.0,0.00016438,2]
[398429547,1765644640465,-500.0,0.00016438,2]
[398429548,1765644640475,-500.0,0.00016438,2]
[398429549,1765644640485,-500.0,0.00016438,2]
[398429550,1765644640494,-500.0,0.00016438,2]
[398429551,1765644640504,-500.0,0.00016438,2]
[398429552,1765644640514,-500.0,0.00016438,2]
[398429553,1765644640523,-500.0,0.00016438,2]
[398429554,1765644640533,-500.0,0.00016438,2]
[398429555,1765644640542,-500.0,0.00016438,2]
[398429556,1765644640552,-500.0,0.00016438,2]
[398429557,1765644640561,-500.0,0.00016438,2]
[398429558,1765644640571,-500.0,0.00016438,2]
[398429559,1765644640581,-500.0,0.00016438,2]
[398429560,1765644640590,-500.0,0.00016438,2]
[398429561,1765644640600,-500.0,0.00016438,2]
[398429562,1765644640609,-500.0,0.00016438,2]
[398429563,1765644640619,-500.0,0.00016438,2]
[398429564,1765644640629,-500.0,0.00016438,2]
[398429565,1765644640639,-6932.19,0.00016438,2]
[398429566,1765644640648,-151.0,0.00016438,2]
[398429567,1765644640658,-151.0,0.00016438,2]
[398429568,1765644640667,-151.0,0.00016438,2]
[398429569,1765644640676,-157.746387,0.00016438,2]
[398429570,1765644640686,-151.0,0.00016438,2]
[398429571,1765644640696,-151.0,0.00016438,2]
[398429572,1765644640705,-270.460382,0.00016438,2]
[398429573,1765644640715,-151.0,0.00016438,2]
[398429574,1765644640724,-151.0,0.00016438,2]
[398429575,1765644640734,-160.448335,0.00016438,2]
[398429576,1765644640744,-151.0,0.00016438,2]
[398429577,1765644640753,-151.0,0.00016438,2]
[398429578,1765644640762,-151.0,0.00016438,2]
[398429579,1765644640772,-154.438672,0.00016438,2]
[398429580,1765644640781,-152.299008,0.00016438,2]
[398429581,1765644640791,-151.0,0.00016438,2]
[398429582,1765644640800,-151.0,0.00016438,2]
[398429583,1765644640809,-151.0,0.00016438,2]
[398429584,1765644640818,-151.0,0.00016438,2]
[398429585,1765644640827,-151.0,0.00016438,2]
[398429586,1765644640836,-151.0,0.00016438,2]
[398429587,1765644640846,-161.0598,0.00016438,2]
[398429588,1765644640855,-161.0598,0.00016438,2]
[398429589,1765644640865,-151.0,0.00016438,2]
[398429590,1765644640874,-161.0598,0.00016438,2]
[398429591,1765644640883,-161.0598,0.00016438,2]
[398429592,1765644640893,-151.0,0.00016438,2]
[398429593,1765644640902,-157.376131,0.00016438,2]
[398429594,1765644640911,-151.0,0.00016438,2]
[398429595,1765644640921,-265.844943,0.00016438,2]
[398429596,1765644640930,-151.0,0.00016438,2]
[398429597,1765644640939,-1639.110994,0.00016438,2]
[398429598,1765644640948,-151.0,0.00016438,2]
[398429599,1765644640957,-927.93,0.00016438,2]
[398429600,1765644640966,-178.21,0.00016438,2]
[398429601,1765644640975,-340.72,0.00016438,2]
[398429602,1765644640985,-1104.96,0.00016438,2]
[398429603,1765644640995,-164.23,0.0001644,2]
[398429604,1765644641004,-348.05825265,0.00016446,2]
[398429605,1765644641013,-590.79771498,0.0001645,2]
[398429606,1765644641022,-168.0,0.00016453,2]
[398429607,1765644641031,-2594.129,0.0001646,2]
[398429608,1765644641041,-173.107,0.0001646,2]
[398429609,1765644641051,-908.89759879,0.00016469,2]
[398429610,1765644641061,-152.1,0.00016473,2]
[398429611,1765644641070,-250.0,0.00016474,2]
[398429612,1765644641080,-168.0,0.00016524,2]
[398429613,1765644641089,-1187.59,0.00016534,2]
[398429614,1765644641098,-500.0,0.00016545,2]
[398429615,1765644641108,-10353.37032344,0.00016565,2]
[398429616,1765644641117,-16720.58463408,0.00016565,2]
[398429617,1765644641127,-7621.0,0.00016567,2]
[398429618,1765644641137,-168.0,0.00016576,2]
[398429619,1765644641149,-500.0,0.00016603,2]
[398429620,1765644641159,-151.0,0.00016611,2]
[398429621,1765644641169,-154.97912,0.00016611,2]
[398429622,1765644641179,-152.134937,0.00016611,2]
[398429623,1765644641191,-151.0,0.00016611,2]
[398429624,1765644641201,-233.632539,0.00016611,2]
[398429625,1765644641211,-151.0,0.00016611,2]
[398429626,1765644641223,-151.0,0.00016611,2]
[398429627,1765644641232,-151.0,0.00016611,2]
[398429628,1765644641243,-151.0,0.00016611,2]
[398429629,1765644641256,-151.0,0.00016611,2]
[398429630,1765644641266,-151.0,0.00016611,2]
[398429631,1765644641276,-156.975274,0.00016611,2]
[398429632,1765644641286,-151.0,0.00016611,2]
[398429633,1765644641296,-151.0,0.00016611,2]
[398429634,1765644641305,-151.0,0.00016611,2]
[398429635,1765644641315,-151.0,0.00016611,2]
[398429636,1765644641325,-151.0,0.00016611,2]
[398429637,1765644641334,-151.0,0.00016611,2]
[398429638,1765644641344,-151.0,0.00016611,2]
[398429639,1765644641355,-151.0,0.00016611,2]
[398429640,1765644641365,-153.375814,0.00016611,2]
[398429641,1765644641375,-151.0,0.00016611,2]
[398429642,1765644641384,-213.682228,0.00016611,2]
[398429643,1765644641394,-151.0,0.00016611,2]
[398429644,1765644641403,-151.0,0.00016611,2]
[398429645,1765644641413,-151.0,0.00016611,2]
[398429646,1765644641422,-151.0,0.00016611,2]
[398429647,1765644641431,-151.0,0.00016611,2]
[398429648,1765644641441,-151.0,0.00016611,2]
[398429649,1765644641451,-151.0,0.00016611,2]
[398429650,1765644641460,-151.0,0.00016611,2]
[398429651,1765644641470,-258.828236,0.00016611,2]
[398429652,1765644641480,-151.0,0.00016611,2]
[398429653,1765644641490,-151.0,0.00016611,2]
[398429654,1765644641499,-211.173027,0.00016611,2]
[398429655,1765644641508,-151.0,0.00016611,2]
[398429656,1765644641518,-151.0,0.00016611,2]
[398429657,1765644641527,-151.0,0.00016611,2]
[398429658,1765644641536,-151.0,0.00016611,2]
[398429659,1765644641546,-151.0,0.00016611,2]
[398429660,1765644641555,-168.0,0.0001662,2]
[398429661,1765644641564,-168.0,0.00016655,2]
[398429662,1765644641574,-168.0,0.0001667,2]
[398429663,1765644641583,-168.0,0.0001669,2]
[398429664,1765644641592,-168.0,0.00016698,2]
[398429665,1765644641602,-724.9627295,0.00016698,2]
[398429666,1765644641612,-2572.31712894,0.00016711,2]
[398429667,1765644641622,-150.0,0.00016712,2]
[398429668,1765644641632,-630.0,0.00016712,2]
[398429669,1765644641641,-278.38503529,0.00016712,2]
[398429670,1765644641651,-150.0,0.00016712,2]
[398429671,1765644641660,-500.0,0.00016712,2]
[398429672,1765644641671,-201.03303051,0.00016712,2]
[398429673,1765644641681,-150.0,0.00016712,2]
[398429674,1765644641691,-500.0,0.00016712,2]
[398429675,1765644641700,-500.0,0.00016712,2]
[398429676,1765644641710,-150.0,0.00016712,2]